[Event "*** Titled Tuesday Blitz"]
[Site "Chess.com"]
[Date "2019.10.01"]
[Round "10"]
[White "SanchezKelvin"]
[Black "Orest_Vovk"]
[Result "0-1"]
[WhiteElo "2516"]
[BlackElo "2427"]
[TimeControl "180+2"]
[EndTime "15:28:16 PDT"]
[Termination "Orest_Vovk won on time"]

1. d4 {[%clk 0:03:01.9]} 1... d5 {[%clk 0:02:59.3]} 2. c4 {[%clk 0:03:03.3]}
2... Bf5 {[%clk 0:02:58.1]} 3. Nc3 {[%clk 0:03:03.7]} 3... e6 {[%clk 0:02:56.2]}
4. cxd5 {[%clk 0:03:04]} 4... exd5 {[%clk 0:02:56.8]} 5. Qb3 {[%clk 0:03:04.9]}
5... Nc6 {[%clk 0:02:56.4]} 6. e4 {[%clk 0:02:49.6]} 6... Bxe4 {[%clk
0:02:38.4]} 7. Qxb7 {[%clk 0:02:40.1]} 7... Nxd4 {[%clk 0:02:29.5]} 8. Nxe4
{[%clk 0:02:21.3]} 8... dxe4 {[%clk 0:02:23.9]} 9. Qxe4+ {[%clk 0:02:19.5]} 9...
Qe7 {[%clk 0:02:19.1]} 10. Bd3 {[%clk 0:02:06.7]} 10... Qxe4+ {[%clk 0:02:14.5]}
11. Bxe4 {[%clk 0:02:06.5]} 11... Bb4+ {[%clk 0:02:16.4]} 12. Kf1 {[%clk
0:01:36.8]} 12... O-O-O {[%clk 0:02:00.6]} 13. Be3 {[%clk 0:01:35.8]} 13... Nf6
{[%clk 0:01:58.7]} 14. Bd3 {[%clk 0:01:31.6]} 14... Kb8 {[%clk 0:01:06.5]} 15.
Ne2 {[%clk 0:01:26.8]} 15... Nf3 {[%clk 0:00:56.7]} 16. Bc2 {[%clk 0:01:01.6]}
16... Nd2+ {[%clk 0:00:54.5]} 17. Kg1 {[%clk 0:01:00.6]} 17... Nc4 {[%clk
0:00:51.7]} 18. Bd4 {[%clk 0:01:01.1]} 18... Rhe8 {[%clk 0:00:49.4]} 19. Bd3
{[%clk 0:00:34.3]} 19... Rxe2 {[%clk 0:00:45.8]} 20. Bxc4 {[%clk 0:00:24.6]}
20... Rd2 {[%clk 0:00:32.3]} 21. Be3 {[%clk 0:00:18.1]} 21... Rd1+ {[%clk
0:00:25.7]} 22. Rxd1 {[%clk 0:00:16.4]} 22... Rxd1+ {[%clk 0:00:27.6]} 23. Bf1
{[%clk 0:00:17.5]} 23... Ne4 {[%clk 0:00:22.6]} 24. g3 {[%clk 0:00:16.6]} 24...
Bd2 {[%clk 0:00:20]} 25. Bd4 {[%clk 0:00:15.9]} 25... Be1 {[%clk 0:00:14.5]} 26.
Be3 {[%clk 0:00:17]} 26... Bd2 {[%clk 0:00:11.9]} 27. Bd4 {[%clk 0:00:17.9]}
27... f6 {[%clk 0:00:13.1]} 28. Kg2 {[%clk 0:00:13.9]} 28... Ba5 {[%clk
0:00:13.2]} 29. Be3 {[%clk 0:00:14.6]} 29... Bb6 {[%clk 0:00:13.8]} 30. Bc4
{[%clk 0:00:13.6]} 30... Rxh1 {[%clk 0:00:13.1]} 31. Kxh1 {[%clk 0:00:15.5]}
31... Nxf2+ {[%clk 0:00:14.6]} 32. Bxf2 {[%clk 0:00:14.9]} 32... Bxf2 {[%clk
0:00:16.5]} 33. Kg2 {[%clk 0:00:15.3]} 33... Bd4 {[%clk 0:00:16.7]} 34. b3
{[%clk 0:00:16]} 34... c6 {[%clk 0:00:17.8]} 35. Kf3 {[%clk 0:00:17]} 35... Kc7
{[%clk 0:00:18.9]} 36. Bd3 {[%clk 0:00:18.9]} 36... h6 {[%clk 0:00:18.9]} 37. h4
{[%clk 0:00:20.3]} 37... Kd6 {[%clk 0:00:17.6]} 38. Bc4 {[%clk 0:00:21.2]} 38...
Kc5 {[%clk 0:00:17]} 39. Ke4 {[%clk 0:00:20.9]} 39... Bf2 {[%clk 0:00:17.1]} 40.
Kf3 {[%clk 0:00:20.7]} 40... Be1 {[%clk 0:00:18.5]} 41. h5 {[%clk 0:00:21]}
41... Kb4 {[%clk 0:00:18.9]} 42. g4 {[%clk 0:00:20.8]} 42... Ka3 {[%clk
0:00:19.9]} 43. Ke4 {[%clk 0:00:13.8]} 43... Kxa2 {[%clk 0:00:21]} 44. Kf5
{[%clk 0:00:13.7]} 44... Ka3 {[%clk 0:00:17]} 45. Ke6 {[%clk 0:00:14.1]} 45...
Kb4 {[%clk 0:00:16.8]} 46. Kf7 {[%clk 0:00:14.7]} 46... Bd2 {[%clk 0:00:15]} 0-1

[Event "*** Titled Tuesday Blitz"]
[Site "Chess.com"]
[Date "2019.10.01"]
[Round "10"]
[White "aa175"]
[Black "brendan174"]
[Result "1/2-1/2"]
[WhiteElo "2297"]
[BlackElo "2133"]
[TimeControl "180+2"]
[EndTime "15:28:17 PDT"]
[Termination "Game drawn by agreement"]

1. d4 {[%clk 0:03:01.9]} 1... Nf6 {[%clk 0:03:01]} 2. Bf4 {[%clk 0:03:02.1]}
2... d5 {[%clk 0:02:59.7]} 3. e3 {[%clk 0:02:49.9]} 3... c5 {[%clk 0:02:58.2]}
4. Nf3 {[%clk 0:02:47.8]} 4... Nc6 {[%clk 0:02:58.3]} 5. Nbd2 {[%clk 0:02:41.9]}
5... e6 {[%clk 0:02:53.2]} 6. c3 {[%clk 0:02:42.4]} 6... Bd6 {[%clk 0:02:54.1]}
7. Bg3 {[%clk 0:02:40.2]} 7... O-O {[%clk 0:02:53.9]} 8. Bd3 {[%clk 0:02:34.6]}
8... b6 {[%clk 0:02:54.1]} 9. e4 {[%clk 0:02:31.7]} 9... dxe4 {[%clk 0:02:49.2]}
10. Nxe4 {[%clk 0:02:33.6]} 10... Nxe4 {[%clk 0:02:46.6]} 11. Bxe4 {[%clk
0:02:35.5]} 11... Bb7 {[%clk 0:02:28.8]} 12. dxc5 {[%clk 0:02:22.7]} 12... Bxc5
{[%clk 0:02:24.2]} 13. Qa4 {[%clk 0:02:19.7]} 13... Rc8 {[%clk 0:02:03.5]} 14.
Rd1 {[%clk 0:02:18.4]} 14... Qe7 {[%clk 0:01:49]} 15. b4 {[%clk 0:02:18.8]}
15... Nxb4 {[%clk 0:01:39.3]} 16. Bxb7 {[%clk 0:02:10.8]} 16... Qxb7 {[%clk
0:01:19.2]} 17. cxb4 {[%clk 0:01:57.9]} 17... Qe4+ {[%clk 0:01:20]} 18. Kf1
{[%clk 0:01:57.3]} 18... Rfd8 {[%clk 0:00:50.2]} 19. Nd2 {[%clk 0:01:27.5]}
19... Qxb4 {[%clk 0:00:45.1]} 20. Qxb4 {[%clk 0:01:27.1]} 20... Bxb4 {[%clk
0:00:47]} 21. Ke2 {[%clk 0:01:28.3]} 21... Rc2 {[%clk 0:00:46.7]} 22. Bf4 {[%clk
0:01:29.4]} 22... Rxa2 {[%clk 0:00:41.2]} 23. Ra1 {[%clk 0:01:28.5]} 23...
Raxd2+ {[%clk 0:00:38.9]} 24. Bxd2 {[%clk 0:01:28.7]} 24... Rxd2+ {[%clk
0:00:40.8]} 25. Ke3 {[%clk 0:01:25.6]} 25... a5 {[%clk 0:00:37.1]} 26. Rhd1
{[%clk 0:01:24.2]} 26... Rxd1 {[%clk 0:00:30]} 27. Rxd1 {[%clk 0:01:26.1]} 27...
Kf8 {[%clk 0:00:31.7]} 28. Rd7 {[%clk 0:01:20.6]} 28... g6 {[%clk 0:00:21.4]}
29. Ke4 {[%clk 0:01:17.9]} 29... Kg7 {[%clk 0:00:22.4]} 30. g4 {[%clk
0:01:12.5]} 30... Bc5 {[%clk 0:00:22.8]} 31. f4 {[%clk 0:01:11.7]} 31... a4
{[%clk 0:00:23.6]} 32. Ra7 {[%clk 0:01:07]} 32... a3 {[%clk 0:00:24.9]} 33. Kd3
{[%clk 0:00:45.9]} 33... h5 {[%clk 0:00:18.5]} 34. g5 {[%clk 0:00:45.2]} 34...
Kf8 {[%clk 0:00:17.2]} 35. Kc4 {[%clk 0:00:41.2]} 35... Ke8 {[%clk 0:00:13.6]}
36. Kb5 {[%clk 0:00:40.4]} 36... Bd6 {[%clk 0:00:10.8]} 37. Ra4 {[%clk
0:00:30.5]} 37... Bc5 {[%clk 0:00:09.9]} 38. Kc6 {[%clk 0:00:26.6]} 38... Kf8
{[%clk 0:00:10.3]} 39. h3 {[%clk 0:00:23.7]} 39... Kg7 {[%clk 0:00:08.9]} 40.
Ra7 {[%clk 0:00:18.5]} 40... Be3 {[%clk 0:00:07.7]} 41. Ra4 {[%clk 0:00:16.4]}
41... a2 {[%clk 0:00:09]} 42. Rxa2 {[%clk 0:00:15.8]} 42... Bxf4 {[%clk
0:00:10.6]} 43. h4 {[%clk 0:00:16.6]} 43... Bg3 {[%clk 0:00:11.3]} 44. Ra4
{[%clk 0:00:14.6]} 44... Bf2 {[%clk 0:00:12.1]} 45. Kd7 {[%clk 0:00:12]} 45...
Bc5 {[%clk 0:00:10.2]} 46. Ke8 {[%clk 0:00:07.5]} 46... b5 {[%clk 0:00:05.1]}
47. Ra5 {[%clk 0:00:07.6]} 47... Bf2 {[%clk 0:00:05]} 48. Rxb5 {[%clk 0:00:04]}
48... Bxh4 {[%clk 0:00:06.2]} 49. Ke7 {[%clk 0:00:03.4]} 1/2-1/2

[Event "*** Titled Tuesday Blitz"]
[Site "Chess.com"]
[Date "2019.10.01"]
[Round "10"]
[White "Tonychess32"]
[Black "yuki_chess123"]
[Result "1-0"]
[WhiteElo "2419"]
[BlackElo "2195"]
[TimeControl "180+2"]
[EndTime "15:28:19 PDT"]
[Termination "Tonychess32 won by resignation"]

1. e4 {[%clk 0:03:01.9]} 1... g6 {[%clk 0:03:00.8]} 2. d4 {[%clk 0:03:01.9]}
2... Bg7 {[%clk 0:03:02.2]} 3. Nf3 {[%clk 0:03:02.8]} 3... c6 {[%clk 0:03:03.5]}
4. Nc3 {[%clk 0:02:56.5]} 4... d5 {[%clk 0:03:02.2]} 5. e5 {[%clk 0:02:52.8]}
5... Bg4 {[%clk 0:03:01.7]} 6. h3 {[%clk 0:02:54]} 6... Bxf3 {[%clk 0:03:02.1]}
7. Qxf3 {[%clk 0:02:55.9]} 7... e6 {[%clk 0:03:03.7]} 8. Be3 {[%clk 0:02:41]}
8... Nd7 {[%clk 0:02:59.5]} 9. g4 {[%clk 0:02:14.2]} 9... Ne7 {[%clk 0:02:58.9]}
10. O-O-O {[%clk 0:02:00.2]} 10... Qa5 {[%clk 0:02:54.3]} 11. Kb1 {[%clk
0:01:53.4]} 11... b5 {[%clk 0:02:55.4]} 12. h4 {[%clk 0:01:48.7]} 12... b4
{[%clk 0:02:56.5]} 13. Ne2 {[%clk 0:01:50.2]} 13... c5 {[%clk 0:02:53.9]} 14. h5
{[%clk 0:01:42.5]} 14... cxd4 {[%clk 0:02:54.6]} 15. Bxd4 {[%clk 0:01:37.7]}
15... Nc6 {[%clk 0:02:53.4]} 16. hxg6 {[%clk 0:01:35.5]} 16... hxg6 {[%clk
0:02:53.5]} 17. Rxh8+ {[%clk 0:01:34.5]} 17... Bxh8 {[%clk 0:02:55]} 18. Qh3
{[%clk 0:01:20.7]} 18... O-O-O {[%clk 0:02:51.9]} 19. f4 {[%clk 0:01:18.7]}
19... g5 {[%clk 0:02:49.8]} 20. Bg1 {[%clk 0:01:10.9]} 20... gxf4 {[%clk
0:02:47.7]} 21. Nxf4 {[%clk 0:01:11.3]} 21... Ndxe5 {[%clk 0:02:39]} 22. g5
{[%clk 0:00:52.6]} 22... Nc4 {[%clk 0:02:19.7]} 23. Bxc4 {[%clk 0:00:31.7]}
23... dxc4 {[%clk 0:02:21.6]} 24. Rxd8+ {[%clk 0:00:23.7]} 24... Qxd8 {[%clk
0:02:21.9]} 25. Qf3 {[%clk 0:00:25]} 25... Kc7 {[%clk 0:02:04.7]} 26. Bh2 {[%clk
0:00:25.3]} 26... Be5 {[%clk 0:02:03.9]} 27. a3 {[%clk 0:00:14.6]} 27... Nd4
{[%clk 0:02:03.1]} 28. Qe4 {[%clk 0:00:12.3]} 28... Nc6 {[%clk 0:01:35.8]} 29.
Nxe6+ {[%clk 0:00:10.7]} 29... fxe6 {[%clk 0:01:36.3]} 30. Bxe5+ {[%clk
0:00:12.6]} 30... Kb6 {[%clk 0:01:27.9]} 31. Qe3+ {[%clk 0:00:10.8]} 31... Kb5
{[%clk 0:01:25.2]} 32. a4+ {[%clk 0:00:04.1]} 32... Kxa4 {[%clk 0:01:23.6]} 33.
b3+ {[%clk 0:00:05.5]} 33... Kb5 {[%clk 0:01:12.4]} 34. bxc4+ {[%clk 0:00:06.4]}
34... Ka6 {[%clk 0:01:12]} 35. Bf6 {[%clk 0:00:02.9]} 35... Qd1+ {[%clk
0:01:06]} 36. Kb2 {[%clk 0:00:04.4]} 36... Qg4 {[%clk 0:00:51.6]} 37. Qb3 {[%clk
0:00:04.2]} 37... Na5 {[%clk 0:00:50.6]} 38. Qa4 {[%clk 0:00:05.1]} 38... Qxc4
{[%clk 0:00:49.3]} 39. Qe8 {[%clk 0:00:06.1]} 39... b3 {[%clk 0:00:42.3]} 40. c3
{[%clk 0:00:03.9]} 40... Qe2+ {[%clk 0:00:42.1]} 41. Ka3 {[%clk 0:00:05.4]}
41... Qc4 {[%clk 0:00:25.8]} 42. Qd7 {[%clk 0:00:06.5]} 42... Qc5+ {[%clk
0:00:20.9]} 43. Kb2 {[%clk 0:00:04.1]} 43... Qb5 {[%clk 0:00:17.4]} 44. Qxb5+
{[%clk 0:00:04.6]} 44... Kxb5 {[%clk 0:00:18.4]} 45. g6 {[%clk 0:00:06.3]} 45...
Ka4 {[%clk 0:00:19.3]} 46. g7 {[%clk 0:00:07.4]} 46... Nc4+ {[%clk 0:00:20.7]}
47. Kb1 {[%clk 0:00:08.9]} 47... Ka3 {[%clk 0:00:21.2]} 48. Bg5 {[%clk
0:00:10.2]} 1-0

[Event "*** Titled Tuesday Blitz"]
[Site "Chess.com"]
[Date "2019.10.01"]
[Round "10"]
[White "Spalir"]
[Black "Micki-taryan"]
[Result "1-0"]
[WhiteElo "2847"]
[BlackElo "2951"]
[TimeControl "180+2"]
[EndTime "15:28:39 PDT"]
[Termination "Spalir won by checkmate"]

1. d4 {[%clk 0:03:01.9]} 1... Nf6 {[%clk 0:03:00]} 2. c4 {[%clk 0:03:03]} 2...
e6 {[%clk 0:03:01.9]} 3. Nf3 {[%clk 0:03:02.7]} 3... b6 {[%clk 0:02:58.1]} 4. a3
{[%clk 0:03:03.6]} 4... Ba6 {[%clk 0:02:57.1]} 5. Qb3 {[%clk 0:03:04.7]} 5...
Nc6 {[%clk 0:02:50.5]} 6. Qc2 {[%clk 0:02:59.5]} 6... Bb7 {[%clk 0:02:38.5]} 7.
e4 {[%clk 0:02:56.5]} 7... d6 {[%clk 0:02:39.4]} 8. Nc3 {[%clk 0:02:54.2]} 8...
Be7 {[%clk 0:02:38.4]} 9. Bd3 {[%clk 0:02:49.4]} 9... e5 {[%clk 0:02:32.3]} 10.
d5 {[%clk 0:02:46]} 10... Nb8 {[%clk 0:02:33.7]} 11. O-O {[%clk 0:02:40.3]}
11... O-O {[%clk 0:02:33.5]} 12. b4 {[%clk 0:02:37.1]} 12... Nbd7 {[%clk
0:02:34.1]} 13. Be3 {[%clk 0:02:26.4]} 13... Ng4 {[%clk 0:02:32.6]} 14. Bd2
{[%clk 0:02:26.9]} 14... g6 {[%clk 0:02:30.5]} 15. h3 {[%clk 0:02:24.6]} 15...
Ngf6 {[%clk 0:02:31.3]} 16. Bh6 {[%clk 0:02:22.2]} 16... Re8 {[%clk 0:02:32.1]}
17. Be3 {[%clk 0:02:19.7]} 17... Nh5 {[%clk 0:02:32.9]} 18. Rfc1 {[%clk
0:02:11.6]} 18... a5 {[%clk 0:02:30]} 19. Na4 {[%clk 0:02:07.6]} 19... Nf4
{[%clk 0:01:41.7]} 20. Bf1 {[%clk 0:02:06.7]} 20... c6 {[%clk 0:01:26.7]} 21.
dxc6 {[%clk 0:01:53.9]} 21... Bxc6 {[%clk 0:01:28.6]} 22. Nc3 {[%clk 0:01:53.5]}
22... Rc8 {[%clk 0:01:09.2]} 23. Rd1 {[%clk 0:01:48.3]} 23... Qc7 {[%clk
0:01:07.8]} 24. Qb2 {[%clk 0:01:44.4]} 24... Qb7 {[%clk 0:00:47]} 25. Nd2 {[%clk
0:01:38.7]} 25... Qa8 {[%clk 0:00:47]} 26. Rac1 {[%clk 0:01:24.6]} 26... h5
{[%clk 0:00:38.9]} 27. Nd5 {[%clk 0:01:20.9]} 27... Bxd5 {[%clk 0:00:39.9]} 28.
cxd5 {[%clk 0:01:19]} 28... Rxc1 {[%clk 0:00:41]} 29. Rxc1 {[%clk 0:01:20.9]}
29... Rc8 {[%clk 0:00:42.3]} 30. Rxc8+ {[%clk 0:01:09.5]} 30... Qxc8 {[%clk
0:00:44.2]} 31. g3 {[%clk 0:01:11]} 31... axb4 {[%clk 0:00:27.8]} 32. axb4
{[%clk 0:01:09.6]} 32... g5 {[%clk 0:00:28.9]} 33. Nc4 {[%clk 0:00:48.8]} 33...
Ng6 {[%clk 0:00:26.5]} 34. Nxb6 {[%clk 0:00:48.2]} 34... Nxb6 {[%clk 0:00:26.7]}
35. Bxb6 {[%clk 0:00:50.1]} 35... h4 {[%clk 0:00:20.3]} 36. Be3 {[%clk
0:00:49.9]} 36... hxg3 {[%clk 0:00:20.4]} 37. fxg3 {[%clk 0:00:51.8]} 37... g4
{[%clk 0:00:22.3]} 38. h4 {[%clk 0:00:52]} 38... f5 {[%clk 0:00:19.9]} 39. exf5
{[%clk 0:00:45.8]} 39... Qxf5 {[%clk 0:00:20.5]} 40. b5 {[%clk 0:00:38.3]} 40...
Bxh4 {[%clk 0:00:21]} 41. gxh4 {[%clk 0:00:37.3]} 41... Nxh4 {[%clk 0:00:22.9]}
42. Qf2 {[%clk 0:00:27.1]} 42... Nf3+ {[%clk 0:00:24.5]} 43. Kg2 {[%clk
0:00:27.3]} 43... Qe4 {[%clk 0:00:25.7]} 44. Kg3 {[%clk 0:00:28.7]} 44... Qxd5
{[%clk 0:00:27.1]} 45. b6 {[%clk 0:00:28.5]} 45... e4 {[%clk 0:00:27.9]} 46. Bf4
{[%clk 0:00:30]} 46... Nd4 {[%clk 0:00:27.8]} 47. Be2 {[%clk 0:00:27.7]} 47...
Nf5+ {[%clk 0:00:20.5]} 48. Kh2 {[%clk 0:00:24.9]} 48... e3 {[%clk 0:00:20.6]}
49. Qg2 {[%clk 0:00:22.7]} 49... Qd2 {[%clk 0:00:07.8]} 50. Qxg4+ {[%clk
0:00:23.6]} 50... Kh8 {[%clk 0:00:08.9]} 51. b7 {[%clk 0:00:23.9]} 51... Qb2
{[%clk 0:00:10]} 52. b8=Q+ {[%clk 0:00:23.8]} 52... Qxb8 {[%clk 0:00:10.6]} 53.
Qxf5 {[%clk 0:00:25.5]} 53... Qb2 {[%clk 0:00:12]} 54. Qf8+ {[%clk 0:00:25.3]}
54... Kh7 {[%clk 0:00:13]} 55. Qe7+ {[%clk 0:00:26.5]} 55... Kg8 {[%clk
0:00:14]} 56. Qxe3 {[%clk 0:00:28.4]} 56... d5 {[%clk 0:00:13.9]} 57. Qe6+
{[%clk 0:00:28.7]} 57... Kf8 {[%clk 0:00:14.9]} 58. Bd6+ {[%clk 0:00:28.9]}
58... Kg7 {[%clk 0:00:15.5]} 59. Be5+ {[%clk 0:00:30.8]} 59... Kh7 {[%clk
0:00:16.2]} 60. Bxb2 {[%clk 0:00:31.6]} 60... d4 {[%clk 0:00:18.1]} 61. Bd3+
{[%clk 0:00:32.1]} 61... Kh8 {[%clk 0:00:18.8]} 62. Bxd4# {[%clk 0:00:33.2]} 1-0

[Event "*** Titled Tuesday Blitz"]
[Site "Chess.com"]
[Date "2019.10.01"]
[Round "10"]
[White "kingofthenil"]
[Black "Taron_Shagbazyan"]
[Result "1-0"]
[WhiteElo "2579"]
[BlackElo "2721"]
[TimeControl "180+2"]
[EndTime "15:28:44 PDT"]
[Termination "kingofthenil won by checkmate"]

1. d4 {[%clk 0:03:01.9]} 1... Nf6 {[%clk 0:02:58.6]} 2. c4 {[%clk 0:03:03.3]}
2... e6 {[%clk 0:03:00.2]} 3. Nc3 {[%clk 0:03:04.7]} 3... Bb4 {[%clk 0:03:00.8]}
4. a3 {[%clk 0:03:06.2]} 4... Bxc3+ {[%clk 0:03:01.8]} 5. bxc3 {[%clk
0:03:07.6]} 5... O-O {[%clk 0:03:01.6]} 6. f3 {[%clk 0:03:08.7]} 6... d5 {[%clk
0:03:02.8]} 7. cxd5 {[%clk 0:03:10.4]} 7... Nxd5 {[%clk 0:03:00.1]} 8. e4 {[%clk
0:02:45.6]} 8... Nxc3 {[%clk 0:02:27.5]} 9. Qb3 {[%clk 0:02:38.2]} 9... Qxd4
{[%clk 0:02:28.5]} 10. Bb2 {[%clk 0:02:38.2]} 10... Qe3+ {[%clk 0:02:12.4]} 11.
Be2 {[%clk 0:02:26.6]} 11... Nd5 {[%clk 0:02:13.7]} 12. Qxe3 {[%clk 0:02:24.8]}
12... Nxe3 {[%clk 0:02:14.7]} 13. Kf2 {[%clk 0:02:23.9]} 13... Nd5 {[%clk
0:02:11.3]} 14. exd5 {[%clk 0:02:23.9]} 14... exd5 {[%clk 0:02:13.2]} 15. Rc1
{[%clk 0:02:23.1]} 15... c6 {[%clk 0:02:12.8]} 16. h4 {[%clk 0:02:19.2]} 16...
a5 {[%clk 0:02:05.8]} 17. h5 {[%clk 0:02:17.5]} 17... h6 {[%clk 0:02:06.6]} 18.
Bd3 {[%clk 0:02:19]} 18... Nd7 {[%clk 0:01:49.6]} 19. Ne2 {[%clk 0:02:18.4]}
19... Re8 {[%clk 0:01:48.8]} 20. g4 {[%clk 0:02:06.5]} 20... Ne5 {[%clk
0:01:48.9]} 21. Rhd1 {[%clk 0:02:03.4]} 21... Nxd3+ {[%clk 0:01:49]} 22. Rxd3
{[%clk 0:02:05.1]} 22... Ra6 {[%clk 0:01:49]} 23. Bd4 {[%clk 0:02:04.2]} 23...
Bd7 {[%clk 0:01:44.9]} 24. Rb1 {[%clk 0:02:00.6]} 24... b5 {[%clk 0:01:45.8]}
25. Rc3 {[%clk 0:01:58.9]} 25... f5 {[%clk 0:01:34.2]} 26. Nf4 {[%clk
0:01:35.3]} 26... fxg4 {[%clk 0:01:32.9]} 27. fxg4 {[%clk 0:01:37.2]} 27... Re4
{[%clk 0:01:30.9]} 28. Ne2 {[%clk 0:01:31.3]} 28... Bxg4 {[%clk 0:01:30.2]} 29.
Re3 {[%clk 0:01:30.2]} 29... Rxe3 {[%clk 0:01:07.2]} 30. Kxe3 {[%clk 0:01:29.9]}
30... Ra8 {[%clk 0:01:06.2]} 31. Ng3 {[%clk 0:01:15.4]} 31... Rf8 {[%clk
0:01:03.1]} 32. Rg1 {[%clk 0:00:56.8]} 32... Rf3+ {[%clk 0:01:03.6]} 33. Kd2
{[%clk 0:00:57.8]} 33... Rxa3 {[%clk 0:01:04.8]} 34. Nf1 {[%clk 0:00:56.5]}
34... Bxh5 {[%clk 0:01:00.3]} 35. Rxg7+ {[%clk 0:00:54.6]} 35... Kf8 {[%clk
0:01:01.8]} 36. Rc7 {[%clk 0:00:51.8]} 36... Ra4 {[%clk 0:00:52.5]} 37. Bc5+
{[%clk 0:00:51.7]} 37... Ke8 {[%clk 0:00:45.9]} 38. Rxc6 {[%clk 0:00:50.8]}
38... Bf3 {[%clk 0:00:46.9]} 39. Rxh6 {[%clk 0:00:47.8]} 39... b4 {[%clk
0:00:47.5]} 40. Ne3 {[%clk 0:00:46.5]} 40... Ra2+ {[%clk 0:00:47.8]} 41. Kc1
{[%clk 0:00:46.2]} 41... b3 {[%clk 0:00:47.4]} 42. Bd4 {[%clk 0:00:45.3]} 42...
a4 {[%clk 0:00:45.4]} 43. Rb6 {[%clk 0:00:20.8]} 43... Be4 {[%clk 0:00:44.4]}
44. Rb7 {[%clk 0:00:17.9]} 44... Kd8 {[%clk 0:00:40]} 45. Be5 {[%clk 0:00:14.4]}
45... Re2 {[%clk 0:00:36.8]} 46. Ng4 {[%clk 0:00:13]} 46... Bf5 {[%clk
0:00:28.7]} 47. Rb8+ {[%clk 0:00:09.6]} 47... Ke7 {[%clk 0:00:25.7]} 48. Bf6+
{[%clk 0:00:06.3]} 48... Kf7 {[%clk 0:00:24.9]} 49. Rb7+ {[%clk 0:00:04.6]}
49... Ke8 {[%clk 0:00:21.1]} 50. Ne5 {[%clk 0:00:04.9]} 50... Rc2+ {[%clk
0:00:20.9]} 51. Kd1 {[%clk 0:00:05.2]} 51... b2 {[%clk 0:00:21.5]} 52. Rb8+
{[%clk 0:00:05.1]} 52... Bc8 {[%clk 0:00:22.1]} 53. Kxc2 {[%clk 0:00:04.7]}
53... b1=Q+ {[%clk 0:00:23.1]} 54. Kxb1 {[%clk 0:00:05.8]} 54... Kf8 {[%clk
0:00:22.4]} 55. Ka1 {[%clk 0:00:07.7]} 55... Kg8 {[%clk 0:00:21.5]} 56. Rxc8+
{[%clk 0:00:09.6]} 56... Kh7 {[%clk 0:00:23.4]} 57. Rh8# {[%clk 0:00:08.9]} 1-0

[Event "*** Titled Tuesday Blitz"]
[Site "Chess.com"]
[Date "2019.10.01"]
[Round "10"]
[White "Olga_Ustinova"]
[Black "ChessQueen"]
[Result "1-0"]
[WhiteElo "2396"]
[BlackElo "2606"]
[TimeControl "180+2"]
[EndTime "15:28:47 PDT"]
[Termination "Olga_Ustinova won by resignation"]

1. d4 {[%clk 0:03:01.9]} 1... Nf6 {[%clk 0:03:00.2]} 2. Nf3 {[%clk 0:03:03.8]}
2... e6 {[%clk 0:03:00.8]} 3. Bf4 {[%clk 0:03:01.3]} 3... b6 {[%clk 0:02:59.6]}
4. e3 {[%clk 0:03:02.5]} 4... Bb7 {[%clk 0:03:00.1]} 5. Nbd2 {[%clk 0:03:04.2]}
5... c5 {[%clk 0:02:59.2]} 6. c3 {[%clk 0:03:05]} 6... Nc6 {[%clk 0:02:58.3]} 7.
Bd3 {[%clk 0:03:05.6]} 7... d5 {[%clk 0:02:59.1]} 8. O-O {[%clk 0:02:58.7]} 8...
Bd6 {[%clk 0:02:58.8]} 9. Ne5 {[%clk 0:02:59.7]} 9... O-O {[%clk 0:02:56.1]} 10.
Qf3 {[%clk 0:03:00.9]} 10... Ne7 {[%clk 0:02:46.1]} 11. Qh3 {[%clk 0:02:58.7]}
11... Bc8 {[%clk 0:01:24]} 12. Bg5 {[%clk 0:02:50.5]} 12... Ng6 {[%clk
0:01:22.7]} 13. f4 {[%clk 0:02:51.5]} 13... Qc7 {[%clk 0:01:16.8]} 14. Rf3
{[%clk 0:02:46.7]} 14... cxd4 {[%clk 0:01:00.4]} 15. exd4 {[%clk 0:02:47.1]}
15... Nd7 {[%clk 0:00:53.6]} 16. Qh5 {[%clk 0:02:35.6]} 16... Re8 {[%clk
0:00:47.7]} 17. Rh3 {[%clk 0:02:29.9]} 17... Ndf8 {[%clk 0:00:48.7]} 18. Ndf3
{[%clk 0:02:30.4]} 18... Bxe5 {[%clk 0:00:34]} 19. Nxe5 {[%clk 0:02:27]} 19...
f5 {[%clk 0:00:33.6]} 20. Nxg6 {[%clk 0:02:25.8]} 20... hxg6 {[%clk 0:00:34.2]}
21. Qh8+ {[%clk 0:02:26.5]} 21... Kf7 {[%clk 0:00:35.6]} 22. Re1 {[%clk
0:02:09.6]} 22... a5 {[%clk 0:00:25.7]} 23. a3 {[%clk 0:02:08.2]} 23... Ba6
{[%clk 0:00:24.2]} 24. Bxa6 {[%clk 0:02:08.5]} 24... Rxa6 {[%clk 0:00:24.7]} 25.
Rhe3 {[%clk 0:02:10.4]} 25... b5 {[%clk 0:00:24.6]} 26. g4 {[%clk 0:01:45.5]}
26... Nd7 {[%clk 0:00:21.3]} 27. Qh4 {[%clk 0:01:45]} 27... Raa8 {[%clk
0:00:10.1]} 28. gxf5 {[%clk 0:01:43.5]} 28... exf5 {[%clk 0:00:09.2]} 29. Re7+
{[%clk 0:01:41.1]} 29... Rxe7 {[%clk 0:00:10.6]} 30. Rxe7+ {[%clk 0:01:43]}
30... Kg8 {[%clk 0:00:12.4]} 31. Qe1 {[%clk 0:01:33.8]} 31... Qd6 {[%clk
0:00:13.5]} 32. Re6 {[%clk 0:01:34.1]} 32... Qf8 {[%clk 0:00:14.4]} 33. Be7
{[%clk 0:01:29.5]} 33... Qf7 {[%clk 0:00:15.1]} 34. Bh4 {[%clk 0:01:29.3]} 34...
Nf6 {[%clk 0:00:11.3]} 35. Bxf6 {[%clk 0:01:27]} 35... gxf6 {[%clk 0:00:12]} 36.
Re7 {[%clk 0:01:28.6]} 36... Qf8 {[%clk 0:00:13.4]} 37. Qe6+ {[%clk 0:01:28.8]}
37... Kh8 {[%clk 0:00:14.7]} 38. Rf7 {[%clk 0:01:30.1]} 38... Qd8 {[%clk
0:00:13.5]} 39. Rxf6 {[%clk 0:01:16.4]} 39... Qe8 {[%clk 0:00:14.7]} 40. Rxg6
{[%clk 0:01:15.8]} 40... Qxe6 {[%clk 0:00:15.5]} 41. Rxe6 {[%clk 0:01:17.7]}
41... b4 {[%clk 0:00:17]} 42. axb4 {[%clk 0:01:19.6]} 42... axb4 {[%clk
0:00:18.5]} 43. Re5 {[%clk 0:01:18.9]} 43... Ra1+ {[%clk 0:00:19.1]} 44. Kf2
{[%clk 0:01:18.2]} 44... Ra2 {[%clk 0:00:20.5]} 45. cxb4 {[%clk 0:00:57]} 45...
Rxb2+ {[%clk 0:00:21.6]} 46. Kg3 {[%clk 0:00:58.9]} 46... Rb3+ {[%clk
0:00:23.1]} 47. Kh4 {[%clk 0:00:59.2]} 47... Rxb4 {[%clk 0:00:24]} 48. Rxd5
{[%clk 0:00:58.9]} 48... Rb2 {[%clk 0:00:21.5]} 49. h3 {[%clk 0:00:59.2]} 49...
Rd2 {[%clk 0:00:20.4]} 50. Rd7 {[%clk 0:00:57.9]} 50... Rg2 {[%clk 0:00:19.6]}
51. d5 {[%clk 0:00:58]} 51... Kg8 {[%clk 0:00:20.8]} 52. d6 {[%clk 0:00:49.3]}
52... Kf8 {[%clk 0:00:22.1]} 53. Ra7 {[%clk 0:00:48.7]} 53... Rd2 {[%clk
0:00:20.9]} 54. d7 {[%clk 0:00:46.8]} 54... Ke7 {[%clk 0:00:22.1]} 55. Kg5
{[%clk 0:00:47.1]} 55... Rh2 {[%clk 0:00:19.6]} 56. h4 {[%clk 0:00:47.9]} 56...
Rh1 {[%clk 0:00:20.8]} 57. h5 {[%clk 0:00:38.9]} 57... Rh2 {[%clk 0:00:21.7]}
58. Kg6 {[%clk 0:00:39]} 58... Rd2 {[%clk 0:00:17.2]} 59. h6 {[%clk 0:00:39.6]}
59... Rg2+ {[%clk 0:00:16.4]} 60. Kxf5 {[%clk 0:00:40.5]} 60... Rh2 {[%clk
0:00:17.8]} 61. h7 {[%clk 0:00:40.5]} 1-0